{"text_format":"1","workbook":"xlsx","n_sheets":13,"sheets":["Välkommen","Startsida","Hjullastare 7 ton och större","Kompaktlastare","Bandlastare","Grävlastare","Bandgrävare upp till 6 ton","Bandgrävare 6 ton och större","Grävmaskin på hjul","Dumper","Bandschaktare","Väghyvel","Teleskoptruck"],"not_rendered":{"charts":0,"images":2,"macros":1,"external_links":0,"defined_names":12,"comments":11,"pivot_tables":0},"unopened":[],"bounds":{"document_bytes":16777216,"sheet_cells":100000,"rows_first":2000,"rows_last":500,"rows_between":2000,"halvings":0,"cell_chars":16384,"cell_head_chars":4096},"cells_cut":0,"cells_raw":0,"read":"whole","date_system":"1900"}

{"sheet":"Välkommen","index":0,"n_rows":8,"n_cols":4,"rows_kept":8,"cut":false,"hidden":false,"merged":[[7,3,16,12]]}
[]
[]
[]
[]
[]
[]
[]
[null,null,null,"Tack för att du medverkar i denna översyn som ME och SCB gör av Anläggningsmaskinindex. Ditt bidrag är viktigt för att ME-index ska fortsätta visa och följa kostnadsutvecklingen för ägandet och användandet av anläggningsmaskiner.\nME-Index beräknas utifrån ett antal poster för kostnader såsom kapital, slitage, underhåll, däck, bränsle, skatter med mera. När du klickar på pilen här nedan för att gå vidare kommer du att få välja mellan elva maskintyper för att ange just din uppfattning av de kostnader ditt företag har för dessa. De maskiner som inte är relevanta för din verksamhet hoppar du helt enkelt över. \n\nNär uppgifterna är ifyllda så sparar du filen och skickar den med e-post till Byggindex@scb.se"]

{"sheet":"Startsida","index":1,"n_rows":23,"n_cols":3,"rows_kept":23,"cut":false,"hidden":true,"merged":[[21,2,21,6],[22,2,22,6],[23,2,23,6],[17,2,17,6],[8,2,8,6],[9,2,9,6],[18,2,18,6],[19,2,19,6],[20,2,20,6],[3,2,3,6],[4,2,4,6],[5,2,5,6],[6,2,6,6],[7,2,7,6]]}
[]
[]
[null,"Gör så här"]
[null,"1.","Genom att klicka på pilarna 1-11 väljer du den eller de maskintyper som du ska lämna uppgifter på. Då öppnas ett nytt blad för respektive maskintyp där andelen kostnader för ett antal kostnadsposter ska anges.\nHar du flera maskiner av samma typ, gör en samlad analys och lämna ett svar.\nNär du är klar med en viss maskintyp, spara filen på din dator och klicka sedan på  den röda knapp som du hittar högst upp till höger för att komma tillbaka hit till startsidan.\nDu kan gå tillbaka och ändra uppgifterna om du behöver.\nKom ihåg att spara filen ofta, helst varje gång du är klar med uppgifter på en maskintyp innan du återvänder till startsidan."]
[null,null,"maskintyp där andelen kostnader för ett antal kostnadsposter ska anges.\n"]
[null,"2.","Har du flera maskiner av samma typ, gör en samlad analys och lämna ett svar."]
[null,"3.","När du är klar med en viss maskintyp, spara filen på din dator och klicka sedan på  den röda knapp som du hittar högst upp till höger för att\n"]
[null,null,"komma tillbaka hit till startsidan."]
[null,"4.","Du kan gå tillbaka och ändra uppgifterna om du behöver."]
[null,"5.","Kom ihåg att spara filen ofta, helst varje gång du är klar med uppgifter på en maskintyp innan du återvänder hit till startsidan."]
[]
[]
[]
[]
[]
[]
[null,"Har du frågor, kontakta oss"]
[]
[null,null,"Svante Flodén ME, telefon 08-762 70 69, e-post svante.floden@me.se"]
[null,null,"Stefan Pettersson SCB, telefon 010 479 42 63, e-post stefan.pettersson@scb.se"]
[null,null,"Jonas Jonsson SCB, telefon 010 479 40 65, e-post jonas.jonsson@scb.se"]
[]
[null,null,"När uppgifterna är ifyllda så sparar du filen och skickar den med e-post till Byggindex@scb.se"]

{"sheet":"Hjullastare 7 ton och större","index":2,"n_rows":42,"n_cols":11,"rows_kept":42,"cut":false,"hidden":true,"merged":[[57,1,57,10],[58,1,58,10],[59,1,59,10],[60,1,60,10],[61,1,61,10],[56,1,56,10],[45,1,45,10],[46,1,46,10],[47,1,47,10],[48,1,48,10],[49,1,49,10],[50,1,50,10],[51,1,51,10],[52,1,52,10],[53,1,53,10],[54,1,54,10],[55,1,55,10],[44,1,44,10],[12,6,12,7],[13,6,13,10],[39,1,39,10],[42,1,42,10],[43,1,43,10]]}
[]
[]
[]
[]
[]
[null,"Vägningstal inom Anläggningsmaskinindex gällande Hjullastare över 7 ton"]
[null,"Hur ser er kostnadsfördelning ut för Hjullastare?"]
[null,"(Om ni anser att de angivna viktandelarna bör justeras, vänligen ange det i de markerade fälten i kolumn G)"]
[]
[null,"Bortse från nedanstående om ni inte bedriver någon verksamhet med Hjullastare."]
[]
[]
[null,"Kostnadsslag",null,null,"Andel ",null,"Min uppfattning av kostnader"]
[null,null,null,null,"Existerande värde i indexberäkning sedan 2006",null,"I de gula fälten nedan fyller du i aktuellt värde för andelar av dina aktuella kostnader för maskintypen. Om du det är enklare för dig att skriva kostnaderna i summa av kronor istället kan du anväda de gråa rutorna till höger och då vi räknar ut andelen. OBS! Använd bara endera kolumnen."]
[]
[null,"Kapitalkostnader",null,null,0.33725086168708762,null,null,"%",null,null,"kr"]
[]
[null,"Reparationer",null,null,0.10797138320298526,null,null,"%",null,null,"kr"]
[]
[null,"Slitdelar",null,null,3.7178504896698522E-2,null,null,"%",null,null,"kr"]
[]
[null,"Drivmedel",null,null,0.2924210817972337,null,null,"%",null,null,"kr"]
[]
[null,"Försäkringar",null,null,2.1331296566954379E-2,null,null,"%",null,null,"kr"]
[]
[null,"Administrationskostnader*",null,null,0.13204291561702333,null,null,"%",null,null,"kr"]
[]
[null,"Däck",null,null,3.3631221663539747E-2,null,null,"%",null,null,"kr"]
[]
[null,"Fordonskatt",null,null,1.2927256425847918E-3,null,null,"%",null,null,"kr"]
[]
[null,"Kontrollbesiktning",null,null,2.1201546743660196E-3,null,null,"%",null,null,"kr"]
[]
[null,"Uppställningsplats",null,null,1.7511216473698316E-2,null,null,"%",null,null,"kr"]
[]
[null,"Diverse",null,null,1.7248637777828361E-2,null,null,"%",null,null,"kr"]
[]
[null,"Summa",null,null,{"$f":"SUM(E16:E36)","v":1},null,{"$f":"SUM(G16:G36)","v":0},"%"]
[null,"Kvar att fördela",null,null,null,null,{"$f":"IF(AND(SUM(G16:G36)>0,SUM(J16:J36)>0),\"Ange värden enbart i en kolumn\",100-G38)","v":100},"%"]
[null,"* med administrationskostnader avses kostnader som rör maskinen i form av tid för bokning av frakt, drivmedelsbeställningar, hantering av dokumentation, tidsbeställning för tjänster såsom service, besiktning och liknande."]
[]
[null,"Kommentarer:"]

{"sheet":"Kompaktlastare","index":3,"n_rows":42,"n_cols":11,"rows_kept":42,"cut":false,"hidden":true,"merged":[[51,1,51,10],[52,1,52,10],[39,1,39,10],[42,1,42,10],[43,1,43,10],[44,1,44,10],[45,1,45,10],[59,1,59,10],[60,1,60,10],[61,1,61,10],[12,6,12,7],[13,6,13,10],[53,1,53,10],[54,1,54,10],[55,1,55,10],[56,1,56,10],[57,1,57,10],[46,1,46,10],[58,1,58,10],[47,1,47,10],[48,1,48,10],[49,1,49,10],[50,1,50,10]]}
[]
[]
[]
[]
[]
[null,"Vägningstal inom Anläggningsmaskinindex gällande Kompaktlastare"]
[null,"Hur ser er kostnadsfördelning ut för Kompaktlastare (skidsteer och hjullastare upp till 7 ton)?"]
[null,"(Om ni anser att de angivna viktandelarna bör justeras, vänligen ange det i de markerade fälten i kolumn G)"]
[]
[null,"Bortse från nedanstående om ni inte bedriver någon verksamhet med Kompaktlastare"]
[]
[]
[null,"Kostnadsslag",null,null,"Andel ",null,"Min uppfattning av kostnader"]
[null,null,null,null,"Existerande värde i indexberäkning sedan 2006",null,"I de gula fälten nedan fyller du i aktuellt värde för andelar av dina aktuella kostnader för maskintypen. Om du det är enklare för dig att skriva kostnaderna i summa av kronor istället kan du anväda de gråa rutorna till höger och då vi räknar ut andelen. OBS! Använd bara endera kolumnen."]
[]
[null,"Kapitalkostnader",null,null,0.34316581156282083,null,null,"%",null,null,"kr"]
[]
[null,"Reparationer",null,null,0.13344506534408782,null,null,"%",null,null,"kr"]
[]
[null,"Slitdelar",null,null,3.8421085388023045E-2,null,null,"%",null,null,"kr"]
[]
[null,"Drivmedel",null,null,0.22347497980151559,null,null,"%",null,null,"kr"]
[]
[null,"Försäkringar",null,null,4.6215172048346916E-2,null,null,"%",null,null,"kr"]
[]
[null,"Administrationskostnader*",null,null,0.10817473512896868,null,null,"%",null,null,"kr"]
[]
[null,"Däck",null,null,5.8811499110002108E-2,null,null,"%",null,null,"kr"]
[]
[null,"Fordonskatt",null,null,0,null,null,"%",null,null,"kr"]
[]
[null,"Kontrollbesiktning",null,null,2.3142047816638702E-3,null,null,"%",null,null,"kr"]
[]
[null,"Uppställningsplats",null,null,2.6772848676694425E-2,null,null,"%",null,null,"kr"]
[]
[null,"Diverse",null,null,1.9204598157876666E-2,null,null,"%",null,null,"kr"]
[]
[null,"Summa",null,null,{"$f":"SUM(E16:E36)","v":0.99999999999999989},null,{"$f":"SUM(G16:G36)","v":0},"%"]
[null,"Kvar att fördela",null,null,null,null,{"$f":"IF(AND(SUM(G16:G36)>0,SUM(J16:J36)>0),\"Ange värden enbart i en kolumn\",100-G38)","v":100},"%"]
[null,"* med administrationskostnader avses kostnader som rör maskinen i form av tid för bokning av frakt, drivmedelsbeställningar, hantering av dokumentation, tidsbeställning för tjänster såsom service, besiktning och liknande."]
[]
[null,"Kommentarer:"]

{"sheet":"Bandlastare","index":4,"n_rows":42,"n_cols":11,"rows_kept":42,"cut":false,"hidden":true,"merged":[[12,6,12,7],[13,6,13,10],[39,1,39,10],[42,1,42,10],[43,1,43,10],[44,1,44,10],[56,1,56,10],[45,1,45,10],[46,1,46,10],[47,1,47,10],[48,1,48,10],[49,1,49,10],[50,1,50,10],[51,1,51,10],[52,1,52,10],[53,1,53,10],[54,1,54,10],[55,1,55,10],[57,1,57,10],[58,1,58,10],[59,1,59,10],[60,1,60,10],[61,1,61,10]]}
[]
[]
[]
[]
[]
[null,"Vägningstal inom Anläggningsmaskinindex gällande Bandlastare"]
[null,"Hur ser er kostnadsfördelning ut för Bandlastare?"]
[null,"(Om ni anser att de angivna viktandelarna bör justeras, vänligen ange det i de markerade fälten i kolumn G)"]
[]
[null,"Bortse från nedanstående om ni inte bedriver någon verksamhet med Bandlastare"]
[]
[]
[null,"Kostnadsslag",null,null,"Andel ",null,"Min uppfattning av kostnader"]
[null,null,null,null,"Existerande värde i indexberäkning sedan 2006",null,"I de gula fälten nedan fyller du i aktuellt värde för andelar av dina aktuella kostnader för maskintypen. Om du det är enklare för dig att skriva kostnaderna i summa av kronor istället kan du anväda de gråa rutorna till höger och då vi räknar ut andelen. OBS! Använd bara endera kolumnen."]
[]
[null,"Kapitalkostnader",null,null,0.27600000000000002,null,null,"%",null,null,"kr"]
[]
[null,"Reparationer",null,null,0.11799999999999999,null,null,"%",null,null,"kr"]
[]
[null,"Slitdelar",null,null,7.9000000000000001E-2,null,null,"%",null,null,"kr"]
[]
[null,"Drivmedel",null,null,0.39500000000000002,null,null,"%",null,null,"kr"]
[]
[null,"Försäkringar",null,null,1.2E-2,null,null,"%",null,null,"kr"]
[]
[null,"Administrationskostnader*",null,null,5.8999999999999997E-2,null,null,"%",null,null,"kr"]
[]
[null,"Däck",null,null,0,null,null,"%",null,null,"kr"]
[]
[null,"Fordonskatt",null,null,0,null,null,"%",null,null,"kr"]
[]
[null,"Kontrollbesiktning",null,null,2.3142047816638702E-3,null,null,"%",null,null,"kr"]
[]
[null,"Uppställningsplats",null,null,0,null,null,"%",null,null,"kr"]
[]
[null,"Diverse",null,null,5.8999999999999997E-2,null,null,"%",null,null,"kr"]
[]
[null,"Summa",null,null,{"$f":"SUM(E16:E36)","v":1.000314204781664},null,{"$f":"SUM(G16:G36)","v":0},"%"]
[null,"Kvar att fördela",null,null,null,null,{"$f":"IF(AND(SUM(G16:G36)>0,SUM(J16:J36)>0),\"Ange värden enbart i en kolumn\",100-G38)","v":100},"%"]
[null,"* med administrationskostnader avses kostnader som rör maskinen i form av tid för bokning av frakt, drivmedelsbeställningar, hantering av dokumentation, tidsbeställning för tjänster såsom service, besiktning och liknande."]
[]
[null,"Kommentarer:"]

{"sheet":"Grävlastare","index":5,"n_rows":42,"n_cols":11,"rows_kept":42,"cut":false,"hidden":true,"merged":[[12,6,12,7],[13,6,13,10],[39,1,39,10],[42,1,42,10],[43,1,43,10],[44,1,44,10],[56,1,56,10],[45,1,45,10],[46,1,46,10],[47,1,47,10],[48,1,48,10],[49,1,49,10],[50,1,50,10],[51,1,51,10],[52,1,52,10],[53,1,53,10],[54,1,54,10],[55,1,55,10],[57,1,57,10],[58,1,58,10],[59,1,59,10],[60,1,60,10],[61,1,61,10]]}
[]
[]
[]
[]
[]
[null,"Vägningstal inom Anläggningsmaskinindex gällande Grävlastare"]
[null,"Hur ser er kostnadsfördelning ut för Grävlastare?"]
[null,"(Om ni anser att de angivna viktandelarna bör justeras, vänligen ange det i de markerade fälten i kolumn G)"]
[]
[null,"Bortse från nedanstående om ni inte bedriver någon verksamhet med Grävlastare"]
[]
[]
[null,"Kostnadsslag",null,null,"Andel ",null,"Min uppfattning av kostnader"]
[null,null,null,null,"Existerande värde i indexberäkning sedan 2006",null,"I de gula fälten nedan fyller du i aktuellt värde för andelar av dina aktuella kostnader för maskintypen. Om du det är enklare för dig att skriva kostnaderna i summa av kronor istället kan du anväda de gråa rutorna till höger och då vi räknar ut andelen. OBS! Använd bara endera kolumnen."]
[]
[null,"Kapitalkostnader",null,null,0.44831706428863899,null,null,"%",null,null,"kr"]
[]
[null,"Reparationer",null,null,0.105199885895654,null,null,"%",null,null,"kr"]
[]
[null,"Slitdelar",null,null,5.0880793646835801E-2,null,null,"%",null,null,"kr"]
[]
[null,"Drivmedel",null,null,0.23385384118109501,null,null,"%",null,null,"kr"]
[]
[null,"Försäkringar",null,null,2.5573560041653998E-2,null,null,"%",null,null,"kr"]
[]
[null,"Administrationskostnader*",null,null,7.1765392292638897E-2,null,null,"%",null,null,"kr"]
[]
[null,"Däck",null,null,3.2388131882017002E-2,null,null,"%",null,null,"kr"]
[]
[null,"Fordonskatt",null,null,2.3888617853000801E-3,null,null,"%",null,null,"kr"]
[]
[null,"Kontrollbesiktning",null,null,6.6719464830970196E-3,null,null,"%",null,null,"kr"]
[]
[null,"Uppställningsplats",null,null,9.9339540592811096E-3,null,null,"%",null,null,"kr"]
[]
[null,"Diverse",null,null,1.3026568443788401E-2,null,null,"%",null,null,"kr"]
[]
[null,"Summa",null,null,{"$f":"SUM(E16:E36)","v":1.0000000000000002},null,{"$f":"SUM(G16:G36)","v":0},"%"]
[null,"Kvar att fördela",null,null,null,null,{"$f":"IF(AND(SUM(G16:G36)>0,SUM(J16:J36)>0),\"Ange värden enbart i en kolumn\",100-G38)","v":100},"%"]
[null,"* med administrationskostnader avses kostnader som rör maskinen i form av tid för bokning av frakt, drivmedelsbeställningar, hantering av dokumentation, tidsbeställning för tjänster såsom service, besiktning och liknande."]
[]
[null,"Kommentarer:"]

{"sheet":"Bandgrävare upp till 6 ton","index":6,"n_rows":42,"n_cols":11,"rows_kept":42,"cut":false,"hidden":true,"merged":[[12,6,12,7],[13,6,13,10],[39,1,39,10],[42,1,42,10],[43,1,43,10],[44,1,44,10],[56,1,56,10],[45,1,45,10],[46,1,46,10],[47,1,47,10],[48,1,48,10],[49,1,49,10],[50,1,50,10],[51,1,51,10],[52,1,52,10],[53,1,53,10],[54,1,54,10],[55,1,55,10],[57,1,57,10],[58,1,58,10],[59,1,59,10],[60,1,60,10],[61,1,61,10]]}
[]
[]
[]
[]
[]
[null,"Vägningstal inom Anläggningsmaskinindex gällande Grävmaskin upp till 6 ton på band"]
[null,"Hur ser er kostnadsfördelning ut för Grävmaskin på band?"]
[null,"(Om ni anser att de angivna viktandelarna bör justeras, vänligen ange det i de markerade fälten i kolumn G)"]
[]
[null,"Bortse från nedanstående om ni inte bedriver någon verksamhet med Grävmaskin upp till 6 ton på band"]
[]
[]
[null,"Kostnadsslag",null,null,"Andel ",null,"Min uppfattning av kostnader"]
[null,null,null,null,"Existerande värde i indexberäkning sedan 2006",null,"I de gula fälten nedan fyller du i aktuellt värde för andelar av dina aktuella kostnader för maskintypen. Om du det är enklare för dig att skriva kostnaderna i summa av kronor istället kan du anväda de gråa rutorna till höger och då vi räknar ut andelen. OBS! Använd bara endera kolumnen."]
[]
[null,"Kapitalkostnader",null,null,0.32129357760248101,null,null,"%",null,null,"kr"]
[]
[null,"Reparationer",null,null,9.7541887856466905E-2,null,null,"%",null,null,"kr"]
[]
[null,"Slitdelar",null,null,5.3726490633214698E-2,null,null,"%",null,null,"kr"]
[]
[null,"Drivmedel",null,null,0.359304018404694,null,null,"%",null,null,"kr"]
[]
[null,"Försäkringar",null,null,1.9731853768257999E-2,null,null,"%",null,null,"kr"]
[]
[null,"Administrationskostnader*",null,null,0.113366747130347,null,null,"%",null,null,"kr"]
[]
[null,"Däck",null,null,0,null,null,"%",null,null,"kr"]
[]
[null,"Fordonskatt",null,null,0,null,null,"%",null,null,"kr"]
[]
[null,"Kontrollbesiktning",null,null,3.16722717966575E-3,null,null,"%",null,null,"kr"]
[]
[null,"Uppställningsplats",null,null,1.08694998123784E-2,null,null,"%",null,null,"kr"]
[]
[null,"Diverse",null,null,2.0998697612494201E-2,null,null,"%",null,null,"kr"]
[]
[null,"Summa",null,null,{"$f":"SUM(E16:E36)","v":1},null,{"$f":"SUM(G16:G36)","v":0},"%"]
[null,"Kvar att fördela",null,null,null,null,{"$f":"IF(AND(SUM(G16:G36)>0,SUM(J16:J36)>0),\"Ange värden enbart i en kolumn\",100-G38)","v":100},"%"]
[null,"* med administrationskostnader avses kostnader som rör maskinen i form av tid för bokning av frakt, drivmedelsbeställningar, hantering av dokumentation, tidsbeställning för tjänster såsom service, besiktning och liknande."]
[]
[null,"Kommentarer:"]

{"sheet":"Bandgrävare 6 ton och större","index":7,"n_rows":42,"n_cols":11,"rows_kept":42,"cut":false,"hidden":true,"merged":[[57,1,57,10],[58,1,58,10],[59,1,59,10],[60,1,60,10],[61,1,61,10],[56,1,56,10],[45,1,45,10],[46,1,46,10],[47,1,47,10],[48,1,48,10],[49,1,49,10],[50,1,50,10],[51,1,51,10],[52,1,52,10],[53,1,53,10],[54,1,54,10],[55,1,55,10],[44,1,44,10],[12,6,12,7],[13,6,13,10],[39,1,39,10],[42,1,42,10],[43,1,43,10]]}
[]
[]
[]
[]
[]
[null,"Vägningstal inom Anläggningsmaskinindex gällande Grävmaskin över 6 ton på band"]
[null,"Hur ser er kostnadsfördelning ut för Grävmaskin på band?"]
[null,"(Om ni anser att de angivna viktandelarna bör justeras, vänligen ange det i de markerade fälten i kolumn G)"]
[]
[null,"Bortse från nedanstående om ni inte bedriver någon verksamhet med Grävmaskin över 6 ton på band"]
[]
[]
[null,"Kostnadsslag",null,null,"Andel ",null,"Min uppfattning av kostnader"]
[null,null,null,null,"Existerande värde i indexberäkning sedan 2006",null,"I de gula fälten nedan fyller du i aktuellt värde för andelar av dina aktuella kostnader för maskintypen. Om du det är enklare för dig att skriva kostnaderna i summa av kronor istället kan du anväda de gråa rutorna till höger och då vi räknar ut andelen. OBS! Använd bara endera kolumnen."]
[]
[null,"Kapitalkostnader",null,null,0.32129357760248101,null,null,"%",null,null,"kr"]
[]
[null,"Reparationer",null,null,9.7541887856466905E-2,null,null,"%",null,null,"kr"]
[]
[null,"Slitdelar",null,null,5.3726490633214698E-2,null,null,"%",null,null,"kr"]
[]
[null,"Drivmedel",null,null,0.359304018404694,null,null,"%",null,null,"kr"]
[]
[null,"Försäkringar",null,null,1.9731853768257999E-2,null,null,"%",null,null,"kr"]
[]
[null,"Administrationskostnader*",null,null,0.113366747130347,null,null,"%",null,null,"kr"]
[]
[null,"Däck",null,null,0,null,null,"%",null,null,"kr"]
[]
[null,"Fordonskatt",null,null,0,null,null,"%",null,null,"kr"]
[]
[null,"Kontrollbesiktning",null,null,3.16722717966575E-3,null,null,"%",null,null,"kr"]
[]
[null,"Uppställningsplats",null,null,1.08694998123784E-2,null,null,"%",null,null,"kr"]
[]
[null,"Diverse",null,null,2.0998697612494201E-2,null,null,"%",null,null,"kr"]
[]
[null,"Summa",null,null,{"$f":"SUM(E16:E36)","v":1},null,{"$f":"SUM(G16:G36)","v":0},"%"]
[null,"Kvar att fördela",null,null,null,null,{"$f":"IF(AND(SUM(G16:G36)>0,SUM(J16:J36)>0),\"Ange värden enbart i en kolumn\",100-G38)","v":100},"%"]
[null,"* med administrationskostnader avses kostnader som rör maskinen i form av tid för bokning av frakt, drivmedelsbeställningar, hantering av dokumentation, tidsbeställning för tjänster såsom service, besiktning och liknande."]
[]
[null,"Kommentarer:"]

{"sheet":"Grävmaskin på hjul","index":8,"n_rows":42,"n_cols":11,"rows_kept":42,"cut":false,"hidden":true,"merged":[[12,6,12,7],[13,6,13,10],[39,1,39,10],[42,1,42,10],[43,1,43,10],[44,1,44,10],[56,1,56,10],[45,1,45,10],[46,1,46,10],[47,1,47,10],[48,1,48,10],[49,1,49,10],[50,1,50,10],[51,1,51,10],[52,1,52,10],[53,1,53,10],[54,1,54,10],[55,1,55,10],[57,1,57,10],[58,1,58,10],[59,1,59,10],[60,1,60,10],[61,1,61,10]]}
[]
[]
[]
[]
[]
[null,"Vägningstal inom Anläggningsmaskinindex gällande Grävmaskin på hjul"]
[null,"Hur ser er kostnadsfördelning ut för Grävmaskin på hjul?"]
[null,"(Om ni anser att de angivna viktandelarna bör justeras, vänligen ange det i de markerade fälten i kolumn G)"]
[]
[null,"Bortse från nedanstående om ni inte bedriver någon verksamhet med Grävmaskin på hjul"]
[]
[]
[null,"Kostnadsslag",null,null,"Andel ",null,"Min uppfattning av kostnader"]
[null,null,null,null,"Existerande värde i indexberäkning sedan 2006",null,"I de gula fälten nedan fyller du i aktuellt värde för andelar av dina aktuella kostnader för maskintypen. Om du det är enklare för dig att skriva kostnaderna i summa av kronor istället kan du anväda de gråa rutorna till höger och då vi räknar ut andelen. OBS! Använd bara endera kolumnen."]
[]
[null,"Kapitalkostnader",null,null,0.38210544636492799,null,null,"%",null,null,"kr"]
[]
[null,"Reparationer",null,null,0.10356143568804101,null,null,"%",null,null,"kr"]
[]
[null,"Slitdelar",null,null,3.8684394653459797E-2,null,null,"%",null,null,"kr"]
[]
[null,"Drivmedel",null,null,0.28135602021541201,null,null,"%",null,null,"kr"]
[]
[null,"Försäkringar",null,null,2.3181211100443199E-2,null,null,"%",null,null,"kr"]
[]
[null,"Administrationskostnader*",null,null,0.106027867432588,null,null,"%",null,null,"kr"]
[]
[null,"Däck",null,null,2.9269785119518301E-2,null,null,"%",null,null,"kr"]
[]
[null,"Fordonskatt",null,null,0,null,null,"%",null,null,"kr"]
[]
[null,"Kontrollbesiktning",null,null,4.3615920346900799E-3,null,null,"%",null,null,"kr"]
[]
[null,"Uppställningsplats",null,null,1.60012539817098E-2,null,null,"%",null,null,"kr"]
[]
[null,"Diverse",null,null,1.5450993409149299E-2,null,null,"%",null,null,"kr"]
[]
[null,"Summa",null,null,{"$f":"SUM(E16:E36)","v":0.9999999999999396},null,{"$f":"SUM(G16:G36)","v":0},"%"]
[null,"Kvar att fördela",null,null,null,null,{"$f":"IF(AND(SUM(G16:G36)>0,SUM(J16:J36)>0),\"Ange värden enbart i en kolumn\",100-G38)","v":100},"%"]
[null,"* med administrationskostnader avses kostnader som rör maskinen i form av tid för bokning av frakt, drivmedelsbeställningar, hantering av dokumentation, tidsbeställning för tjänster såsom service, besiktning och liknande."]
[]
[null,"Kommentarer:"]

{"sheet":"Dumper","index":9,"n_rows":42,"n_cols":11,"rows_kept":42,"cut":false,"hidden":true,"merged":[[12,6,12,7],[13,6,13,10],[39,1,39,10],[42,1,42,10],[43,1,43,10],[44,1,44,10],[56,1,56,10],[45,1,45,10],[46,1,46,10],[47,1,47,10],[48,1,48,10],[49,1,49,10],[50,1,50,10],[51,1,51,10],[52,1,52,10],[53,1,53,10],[54,1,54,10],[55,1,55,10],[57,1,57,10],[58,1,58,10],[59,1,59,10],[60,1,60,10],[61,1,61,10]]}
[]
[]
[]
[]
[]
[null,"Vägningstal inom Anläggningsmaskinindex gällande Dumper"]
[null,"Hur ser er kostnadsfördelning ut för Dumper?"]
[null,"(Om ni anser att de angivna viktandelarna bör justeras, vänligen ange det i de markerade fälten i kolumn G)"]
[]
[null,"Bortse från nedanstående om ni inte bedriver någon verksamhet med Dumper"]
[]
[]
[null,"Kostnadsslag",null,null,"Andel ",null,"Min uppfattning av kostnader"]
[null,null,null,null,"Existerande värde i indexberäkning sedan 2006",null,"I de gula fälten nedan fyller du i aktuellt värde för andelar av dina aktuella kostnader för maskintypen. Om du det är enklare för dig att skriva kostnaderna i summa av kronor istället kan du anväda de gråa rutorna till höger och då vi räknar ut andelen. OBS! Använd bara endera kolumnen."]
[]
[null,"Kapitalkostnader",null,null,0.29179483739822698,null,null,"%",null,null,"kr"]
[]
[null,"Reparationer",null,null,0.14781086806478899,null,null,"%",null,null,"kr"]
[]
[null,"Slitdelar",null,null,3.7492809722812201E-2,null,null,"%",null,null,"kr"]
[]
[null,"Drivmedel",null,null,0.30562456821963802,null,null,"%",null,null,"kr"]
[]
[null,"Försäkringar",null,null,2.17294632248148E-2,null,null,"%",null,null,"kr"]
[]
[null,"Administrationskostnader*",null,null,7.5091225717827004E-2,null,null,"%",null,null,"kr"]
[]
[null,"Däck",null,null,7.1374423606761106E-2,null,null,"%",null,null,"kr"]
[]
[null,"Fordonskatt",null,null,3.0035554086399401E-2,null,null,"%",null,null,"kr"]
[]
[null,"Kontrollbesiktning",null,null,2.1490022168245198E-3,null,null,"%",null,null,"kr"]
[]
[null,"Uppställningsplats",null,null,6.8448313616560098E-3,null,null,"%",null,null,"kr"]
[]
[null,"Diverse",null,null,1.0052416380249301E-2,null,null,"%",null,null,"kr"]
[]
[null,"Summa",null,null,{"$f":"SUM(E16:E36)","v":0.99999999999999845},null,{"$f":"SUM(G16:G36)","v":0},"%"]
[null,"Kvar att fördela",null,null,null,null,{"$f":"IF(AND(SUM(G16:G36)>0,SUM(J16:J36)>0),\"Ange värden enbart i en kolumn\",100-G38)","v":100},"%"]
[null,"* med administrationskostnader avses kostnader som rör maskinen i form av tid för bokning av frakt, drivmedelsbeställningar, hantering av dokumentation, tidsbeställning för tjänster såsom service, besiktning och liknande."]
[]
[null,"Kommentarer:"]

{"sheet":"Bandschaktare","index":10,"n_rows":42,"n_cols":11,"rows_kept":42,"cut":false,"hidden":true,"merged":[[12,6,12,7],[13,6,13,10],[39,1,39,10],[42,1,42,10],[43,1,43,10],[44,1,44,10],[56,1,56,10],[45,1,45,10],[46,1,46,10],[47,1,47,10],[48,1,48,10],[49,1,49,10],[50,1,50,10],[51,1,51,10],[52,1,52,10],[53,1,53,10],[54,1,54,10],[55,1,55,10],[57,1,57,10],[58,1,58,10],[59,1,59,10],[60,1,60,10],[61,1,61,10]]}
[]
[]
[]
[]
[]
[null,"Vägningstal inom Anläggningsmaskinindex gällande Bandschaktare"]
[null,"Hur ser er kostnadsfördelning ut för Bandschaktare?"]
[null,"(Om ni anser att de angivna viktandelarna bör justeras, vänligen ange det i de markerade fälten i kolumn G)"]
[]
[null,"Bortse från nedanstående om ni inte bedriver någon verksamhet med Bandschaktare"]
[]
[]
[null,"Kostnadsslag",null,null,"Andel ",null,"Min uppfattning av kostnader"]
[null,null,null,null,"Existerande värde i indexberäkning sedan 2006",null,"I de gula fälten nedan fyller du i aktuellt värde för andelar av dina aktuella kostnader för maskintypen. Om du det är enklare för dig att skriva kostnaderna i summa av kronor istället kan du anväda de gråa rutorna till höger och då vi räknar ut andelen. OBS! Använd bara endera kolumnen."]
[]
[null,"Kapitalkostnader",null,null,0.297508160827895,null,null,"%",null,null,"kr"]
[]
[null,"Reparationer",null,null,8.6734301543570605E-2,null,null,"%",null,null,"kr"]
[]
[null,"Slitdelar",null,null,0.10368280864061299,null,null,"%",null,null,"kr"]
[]
[null,"Drivmedel",null,null,0.38833906257614798,null,null,"%",null,null,"kr"]
[]
[null,"Försäkringar",null,null,1.70263378454934E-2,null,null,"%",null,null,"kr"]
[]
[null,"Administrationskostnader*",null,null,8.4913644238096803E-2,null,null,"%",null,null,"kr"]
[]
[null,"Däck",null,null,0,null,null,"%",null,null,"kr"]
[]
[null,"Fordonskatt",null,null,0,null,null,"%",null,null,"kr"]
[]
[null,"Kontrollbesiktning",null,null,1.3838633571985699E-3,null,null,"%",null,null,"kr"]
[]
[null,"Uppställningsplats",null,null,4.5228292341888401E-3,null,null,"%",null,null,"kr"]
[]
[null,"Diverse",null,null,1.5888991736795099E-2,null,null,"%",null,null,"kr"]
[]
[null,"Summa",null,null,{"$f":"SUM(E16:E36)","v":0.99999999999999911},null,{"$f":"SUM(G16:G36)","v":0},"%"]
[null,"Kvar att fördela",null,null,null,null,{"$f":"IF(AND(SUM(G16:G36)>0,SUM(J16:J36)>0),\"Ange värden enbart i en kolumn\",100-G38)","v":100},"%"]
[null,"* med administrationskostnader avses kostnader som rör maskinen i form av tid för bokning av frakt, drivmedelsbeställningar, hantering av dokumentation, tidsbeställning för tjänster såsom service, besiktning och liknande."]
[]
[null,"Kommentarer:"]

{"sheet":"Väghyvel","index":11,"n_rows":42,"n_cols":11,"rows_kept":42,"cut":false,"hidden":true,"merged":[[12,6,12,7],[13,6,13,10],[39,1,39,10],[42,1,42,10],[43,1,43,10],[44,1,44,10],[56,1,56,10],[45,1,45,10],[46,1,46,10],[47,1,47,10],[48,1,48,10],[49,1,49,10],[50,1,50,10],[51,1,51,10],[52,1,52,10],[53,1,53,10],[54,1,54,10],[55,1,55,10],[57,1,57,10],[58,1,58,10],[59,1,59,10],[60,1,60,10],[61,1,61,10]]}
[]
[]
[]
[]
[]
[null,"Vägningstal inom Anläggningsmaskinindex gällande Väghyvel"]
[null,"Hur ser er kostnadsfördelning ut för Väghyvel?"]
[null,"(Om ni anser att de angivna viktandelarna bör justeras, vänligen ange det i de markerade fälten i kolumn G)"]
[]
[null,"Bortse från nedanstående om ni inte bedriver någon verksamhet med Väghyvel"]
[]
[]
[null,"Kostnadsslag",null,null,"Andel ",null,"Min uppfattning av kostnader"]
[null,null,null,null,"Existerande värde i indexberäkning sedan 2006",null,"I de gula fälten nedan fyller du i aktuellt värde för andelar av dina aktuella kostnader för maskintypen. Om du det är enklare för dig att skriva kostnaderna i summa av kronor istället kan du anväda de gråa rutorna till höger och då vi räknar ut andelen. OBS! Använd bara endera kolumnen."]
[]
[null,"Kapitalkostnader",null,null,0.32628517435587101,null,null,"%",null,null,"kr"]
[]
[null,"Reparationer",null,null,0.183117648966028,null,null,"%",null,null,"kr"]
[]
[null,"Slitdelar",null,null,5.7990803989773403E-2,null,null,"%",null,null,"kr"]
[]
[null,"Drivmedel",null,null,0.25452658280946999,null,null,"%",null,null,"kr"]
[]
[null,"Försäkringar",null,null,3.5029165702738799E-2,null,null,"%",null,null,"kr"]
[]
[null,"Administrationskostnader*",null,null,6.6084850560948594E-2,null,null,"%",null,null,"kr"]
[]
[null,"Däck",null,null,3.4383718870758598E-2,null,null,"%",null,null,"kr"]
[]
[null,"Fordonskatt",null,null,3.0121198235357298E-3,null,null,"%",null,null,"kr"]
[]
[null,"Kontrollbesiktning",null,null,1.9133594650735E-3,null,null,"%",null,null,"kr"]
[]
[null,"Uppställningsplats",null,null,1.5286082990652299E-2,null,null,"%",null,null,"kr"]
[]
[null,"Diverse",null,null,2.2370492465150899E-2,null,null,"%",null,null,"kr"]
[]
[null,"Summa",null,null,{"$f":"SUM(E16:E36)","v":1.0000000000000011},null,{"$f":"SUM(G16:G36)","v":0},"%"]
[null,"Kvar att fördela",null,null,null,null,{"$f":"IF(AND(SUM(G16:G36)>0,SUM(J16:J36)>0),\"Ange värden enbart i en kolumn\",100-G38)","v":100},"%"]
[null,"* med administrationskostnader avses kostnader som rör maskinen i form av tid för bokning av frakt, drivmedelsbeställningar, hantering av dokumentation, tidsbeställning för tjänster såsom service, besiktning och liknande."]
[]
[null,"Kommentarer:"]

{"sheet":"Teleskoptruck","index":12,"n_rows":42,"n_cols":11,"rows_kept":42,"cut":false,"hidden":true,"merged":[[12,6,12,7],[13,6,13,10],[39,1,39,10],[42,1,42,10],[43,1,43,10],[44,1,44,10],[56,1,56,10],[45,1,45,10],[46,1,46,10],[47,1,47,10],[48,1,48,10],[49,1,49,10],[50,1,50,10],[51,1,51,10],[52,1,52,10],[53,1,53,10],[54,1,54,10],[55,1,55,10],[57,1,57,10],[58,1,58,10],[59,1,59,10],[60,1,60,10],[61,1,61,10]]}
[]
[]
[]
[]
[]
[null,"Vägningstal inom Anläggningsmaskinindex gällande Teleskoplastare"]
[null,"Hur ser er kostnadsfördelning ut för Teleskoplastare?"]
[null,"(Om ni anser att de angivna viktandelarna bör justeras, vänligen ange det i de markerade fälten i kolumn G)"]
[]
[null,"Bortse från nedanstående om ni inte bedriver någon verksamhet med Teleskoptruck"]
[]
[]
[null,"Kostnadsslag",null,null,"Andel ",null,"Min uppfattning av kostnader"]
[null,null,null,null,"Existerande värde i indexberäkning sedan 2006",null,"I de gula fälten nedan fyller du i aktuellt värde för andelar av dina aktuella kostnader för maskintypen. Om du det är enklare för dig att skriva kostnaderna i summa av kronor istället kan du anväda de gråa rutorna till höger och då vi räknar ut andelen. OBS! Använd bara endera kolumnen."]
[]
[null,"Kapitalkostnader",null,null,0.47170615864465598,null,null,"%",null,null,"kr"]
[]
[null,"Reparationer",null,null,8.9844087197876205E-2,null,null,"%",null,null,"kr"]
[]
[null,"Slitdelar",null,null,3.1531638295323898E-2,null,null,"%",null,null,"kr"]
[]
[null,"Drivmedel",null,null,0.19417175409196499,null,null,"%",null,null,"kr"]
[]
[null,"Försäkringar",null,null,3.9926289318744999E-2,null,null,"%",null,null,"kr"]
[]
[null,"Administrationskostnader*",null,null,7.7489798580953798E-2,null,null,"%",null,null,"kr"]
[]
[null,"Däck",null,null,3.5849602287804601E-2,null,null,"%",null,null,"kr"]
[]
[null,"Fordonskatt",null,null,0,null,null,"%",null,null,"kr"]
[]
[null,"Kontrollbesiktning",null,null,9.9760668108313296E-3,null,null,"%",null,null,"kr"]
[]
[null,"Uppställningsplats",null,null,3.0722128098936301E-2,null,null,"%",null,null,"kr"]
[]
[null,"Diverse",null,null,1.8783323782480099E-2,null,null,"%",null,null,"kr"]
[]
[null,"Summa",null,null,{"$f":"SUM(E16:E36)","v":1.0000008471095723},null,{"$f":"SUM(G16:G36)","v":0},"%"]
[null,"Kvar att fördela",null,null,null,null,{"$f":"IF(AND(SUM(G16:G36)>0,SUM(J16:J36)>0),\"Ange värden enbart i en kolumn\",100-G38)","v":100},"%"]
[null,"* med administrationskostnader avses kostnader som rör maskinen i form av tid för bokning av frakt, drivmedelsbeställningar, hantering av dokumentation, tidsbeställning för tjänster såsom service, besiktning och liknande."]
[]
[null,"Kommentarer:"]